fUST/lending_fUST_20260406
["ID","MTS","AMOUNT","RATE_DAILY","PERIOD"]
[419834074,1775406638762,-500.0,0.00021,2]
[419834075,1775406638771,-2500.0,0.00021064,2]
[419834076,1775406638780,-211.19416482,0.00021151,2]
[419834077,1775406638789,-1533.50472788,0.00021266,2]
[419834078,1775406638798,-250.0,0.00021381,3]
[419834079,1775406638808,-250.0,0.00021381,3]
[419834080,1775406638817,-250.0,0.00021381,3]
[419834081,1775406638826,-200.0,0.00021488,2]
[419834082,1775406638835,-3000.0,0.00021612,2]
[419834083,1775406638844,-455.1356185,0.00021633,2]
[419834084,1775406638853,-151.321121,0.00021633,2]
[419834085,1775406638863,-415.96,0.000217,2]
[419834086,1775406638872,-160.0,0.000218,2]
[419834087,1775406638883,-203.08682549,0.00021899,2]
[419834088,1775406638892,-379.49610751,0.00021899,2]
[419834089,1775406638902,-9587.67571879,0.000219,2]
[419834299,1775406641021,-744.24204284,0.000219,2]
[419834957,1775406649747,-573.66815739,0.00020709,2]
[419834960,1775406649766,-1022.33648526,0.00021266,2]
[419834963,1775406649779,-573.66815739,0.00021305,2]
[419834965,1775406649789,-1918.20262612,0.000219,2]
[419834967,1775406649799,-1230.34743695,0.000219,5]
[419834969,1775406649809,-1213.75906027,0.000219,5]
[419834971,1775406649818,-4348.96417287,0.000219,2]
[419834973,1775406649828,-1537.7963527,0.00021952,2]
[419834975,1775406649837,-509.57372968,0.00021973,2]
[419834977,1775406649847,-500.0,0.00021973,2]
[419834979,1775406649856,-500.0,0.00021973,2]
[419834981,1775406649866,-248.90448356,0.00021973,2]
[419834983,1775406649876,-428.84043568,0.00021973,2]
[419834985,1775406649885,-500.0,0.00021973,2]
[419834987,1775406649895,-500.0,0.00021973,2]
[419834989,1775406649905,-500.0,0.00021973,2]
[419834991,1775406649914,-500.0,0.00021973,2]
[419834993,1775406649923,-500.0,0.00021973,2]
[419834995,1775406649933,-500.0,0.00021973,2]
[419834997,1775406649942,-500.0,0.00021973,2]
[419834999,1775406649952,-500.0,0.00021973,2]
[419835001,1775406649961,-500.0,0.00021973,2]
[419835003,1775406649971,-648.63421265,0.00021973,2]
[419835005,1775406649980,-500.0,0.00021973,2]
[419835007,1775406649990,-500.0,0.00021973,2]
[419835009,1775406649999,-500.0,0.00021973,2]
[419835011,1775406650009,-500.0,0.00021973,2]
[419835013,1775406650018,-500.0,0.00021973,2]
[419835015,1775406650028,-500.0,0.00021973,2]
[419835017,1775406650038,-500.0,0.00021973,2]
[419835019,1775406650047,-500.0,0.00021973,2]
[419835021,1775406650056,-500.0,0.00021973,2]
[419835022,1775406650066,-500.0,0.00021973,2]
[419835023,1775406650077,-500.0,0.00021973,2]
[419835024,1775406650086,-500.0,0.00021973,2]
[419835025,1775406650097,-500.0,0.00021973,2]
[419835026,1775406650106,-500.0,0.00021973,2]
[419835027,1775406650116,-500.0,0.00021973,2]
[419835028,1775406650126,-500.0,0.00021973,2]
[419835029,1775406650136,-500.0,0.00021999,2]
[419835030,1775406650145,-500.0,0.00021999,2]
[419835031,1775406650155,-500.0,0.00021999,2]
[419835032,1775406650164,-500.0,0.00021999,2]
[419835033,1775406650174,-500.0,0.00021999,2]
[419835034,1775406650183,-500.0,0.00021999,2]
[419835035,1775406650193,-622.60596797,0.00021999,2]
[419835036,1775406650202,-287.72725914,0.00021999,2]
[419835052,1775406727880,1000.0,0.00013699,2]
[419835055,1775407049311,152.0,0.00028575,120]
[419835081,1775407757443,500.0,0.00032876,120]
[419835082,1775407757664,500.0,0.00032876,120]
[419835083,1775407757891,500.0,0.00032876,120]
[419835084,1775407758329,500.0,0.00032876,120]
[419835085,1775407758548,500.0,0.00032876,120]
[419835086,1775407758775,500.0,0.00032876,120]
[419835087,1775407759007,500.0,0.00032876,120]
[419835088,1775407759231,500.0,0.00032876,120]
[419835089,1775407759457,500.0,0.00032876,120]
[419835090,1775407759892,500.0,0.00032876,120]
[419835091,1775407760146,500.0,0.00032876,120]
[419835092,1775407760377,500.0,0.00032876,120]
[419835093,1775407760635,500.0,0.00032876,120]
[419835094,1775407760862,499.88,0.00032876,120]
[419835102,1775407838452,-1200.0,0.00013157,2]
[419835103,1775407838462,-607.0,0.00013157,2]
[419835104,1775407838471,-5000.0,0.00013158,2]
[419835105,1775407838481,-1000.0,0.00013699,2]
[419835106,1775407838491,-300.0,0.00013832,2]
[419835107,1775407838500,-300.0,0.00013832,2]
[419835108,1775407838510,-300.0,0.00013832,2]
[419835109,1775407838519,-300.0,0.00013832,2]
[419835110,1775407838528,-300.0,0.00013832,2]
[419835111,1775407838538,-300.0,0.00013832,2]
[419835112,1775407838547,-300.0,0.00013832,2]
[419835113,1775407838557,-300.0,0.00013832,2]
[419835114,1775407838566,-300.0,0.00013832,2]
[419835115,1775407838575,-300.0,0.00013832,2]
[419835116,1775407838584,-300.0,0.00013832,2]
[419835117,1775407838594,-300.0,0.00013832,2]
[419835118,1775407838604,-300.0,0.00013832,2]
[419835119,1775407838614,-300.0,0.00013832,2]
[419835120,1775407838623,-300.0,0.00013832,2]
[419835121,1775407838633,-351.6146169,0.00016789,2]
[419835122,1775407838642,-184.0,0.00018163,2]
[419835123,1775407838651,-1421.636,0.00018163,2]
[419835124,1775407838660,-2204.0,0.00018163,2]
[419835125,1775407838670,-644.0,0.00018163,2]
[419835126,1775407838679,-4184.3413763,0.00018219,2]
[419835127,1775407838689,-600.0,0.00018525,2]
[419835128,1775407838698,-1957.856,0.00018859,2]
[419835129,1775407838708,-168.3888056,0.00018859,2]
[419835130,1775407838717,-557.5788265,0.00018859,2]
[419835131,1775407838727,-174.61919141,0.00018859,2]
[419835132,1775407838737,-181.08010149,0.00018859,2]
[419835133,1775407838746,-187.78006525,0.00018859,2]
[419835134,1775407838756,-269.14476905,0.00018859,2]
[419835135,1775407838766,-2230.315306,0.00018859,2]
[419835136,1775407838775,-961.12272049,0.0001887,2]
[419835137,1775407838784,-159.03530155,0.00018908,2]
[419835139,1775407838794,-159.03530155,0.00018908,2]
[419835141,1775407838804,-2030.296672,0.00018914,2]
[419835143,1775407838814,-578.20924308,0.00018914,2]
[419835145,1775407838823,-721.42800854,0.00018969,2]
[419835147,1775407838857,-1383.98964032,0.00018969,2]
[419835149,1775407838866,-599.60298507,0.00018969,2]
[419835151,1775407838876,-2220.86797061,0.00019024,2]
[419835153,1775407838885,-621.78829552,0.00019024,2]
[419835155,1775407838894,-644.79446246,0.00019079,2]
[419835157,1775407838904,-668.65185757,0.00019134,2]
[419835159,1775407838913,-693.3919763,0.00019189,2]
[419835160,1775407838923,-200.68651146,0.00019244,2]
[419835163,1775407838933,-543.25259919,0.00019407,2]
[419835165,1775407838943,-500.0,0.00019757,2]
[419835166,1775407838952,-500.0,0.0001998,30]
[419835168,1775407838962,-500.0,0.0001998,7]
[419835170,1775407838971,-160.59,0.0001998,30]
[419835172,1775407838981,-500.0,0.0001998,30]
[419835174,1775407838990,-500.0,0.00019984,30]
[419835176,1775407838999,-259.02,0.00019984,30]
[419835179,1775407839010,-2292.53301607,0.0002,2]
[419835181,1775407839020,-500.0,0.0002,30]
[419835183,1775407839029,-500.0,0.0002,7]
[419835185,1775407839040,-321.19,0.0002,7]
[419835187,1775407839050,-500.0,0.00020004,30]
[419835188,1775407839059,-500.0,0.0002002,30]
[419835191,1775407839069,-500.0,0.0002002,7]
[419835193,1775407839078,-160.59,0.0002002,30]
[419835194,1775407839088,-500.0,0.00020024,30]
[419835196,1775407839098,-259.02,0.00020024,30]
[419835198,1775407839108,-961.12272043,0.00020082,2]
[419835200,1775407839118,-191.22271913,0.00020211,2]
[419835202,1775407839127,-191.22271913,0.00020213,2]
[419835204,1775407839137,-1238.80703657,0.00020213,2]
[419835206,1775407839146,-1238.80703656,0.00020213,2]
[419835208,1775407839156,-1238.80703656,0.00020214,2]
[419835210,1775407839166,-1238.80703656,0.00020214,2]
[419835212,1775407839175,-1238.80703656,0.00020214,2]
[419835214,1775407839185,-191.22271913,0.00020214,2]
[419835216,1775407839194,-500.0,0.00020254,30]
[419835218,1775407839203,-500.0,0.0002031,2]
[419835220,1775407839211,-500.0,0.0002031,2]
[419835222,1775407839220,-500.0,0.0002031,2]
[419835224,1775407839230,-500.0,0.0002031,2]
[419835226,1775407839239,-500.0,0.0002031,2]
[419835228,1775407839248,-500.0,0.0002031,2]
[419835230,1775407839257,-500.0,0.0002031,2]
[419835232,1775407839266,-158.41574037,0.0002031,2]
[419835234,1775407839275,-500.0,0.0002031,2]
[419835236,1775407839285,-500.0,0.0002031,2]
[419835238,1775407839294,-500.0,0.0002031,2]
[419835240,1775407839303,-500.0,0.0002031,2]
[419835242,1775407839312,-500.0,0.0002031,2]
[419835244,1775407839321,-500.0,0.0002031,2]
[419835246,1775407839330,-500.0,0.0002031,2]
[419835248,1775407839339,-315.93347643,0.0002031,2]
[419835250,1775407839348,-500.0,0.0002031,2]
[419835252,1775407839357,-500.0,0.0002031,2]
[419835254,1775407839366,-500.0,0.0002031,2]
[419835256,1775407839375,-500.0,0.0002031,2]
[419835258,1775407839385,-500.0,0.0002031,2]
[419835260,1775407839395,-500.0,0.0002031,2]
[419835262,1775407839404,-500.0,0.0002031,2]
[419835264,1775407839413,-500.0,0.0002031,2]
[419835266,1775407839422,-500.0,0.0002031,2]
[419835268,1775407839432,-500.0,0.0002031,2]
[419835270,1775407839441,-279.33272749,0.0002031,2]
[419835273,1775407839451,-500.0,0.0002031,2]
[419835274,1775407839460,-500.0,0.0002031,2]
[419835277,1775407839469,-500.0,0.0002031,2]
[419835279,1775407839478,-500.0,0.0002031,2]
[419835280,1775407839488,-500.0,0.0002031,2]
[419835282,1775407839497,-500.0,0.0002031,2]
[419835284,1775407839506,-197.76562631,0.0002031,2]
[419835286,1775407839515,-500.0,0.0002031,2]
[419835288,1775407839525,-500.0,0.0002031,2]
[419835290,1775407839534,-500.0,0.0002031,2]
[419835292,1775407839544,-500.0,0.0002031,2]
[419835295,1775407839554,-500.0,0.0002031,2]
[419835296,1775407839563,-500.0,0.0002031,2]
[419835298,1775407839573,-500.0,0.0002031,2]
[419835300,1775407839582,-513.05949585,0.0002031,2]
[419835303,1775407839593,-500.0,0.0002031,2]
[419835304,1775407839602,-500.0,0.0002031,2]
[419835306,1775407839611,-500.0,0.0002031,2]
[419835308,1775407839621,-500.0,0.0002031,2]
[419835310,1775407839632,-500.0,0.0002031,2]
[419835312,1775407839641,-500.0,0.0002031,2]
[419835314,1775407839650,-500.0,0.0002031,2]
[419835316,1775407839662,-500.0,0.0002031,2]
[419835318,1775407839671,-500.0,0.0002031,2]
[419835320,1775407839681,-500.0,0.0002031,2]
[419835322,1775407839690,-223.73477558,0.00020313,2]
[419835324,1775407839700,-500.0,0.00020313,2]
[419835327,1775407839709,-500.0,0.00020313,2]
[419835328,1775407839719,-425.84228871,0.00020313,2]
[419835330,1775407839728,-500.0,0.00020313,2]
[419835332,1775407839737,-500.0,0.00020313,2]
[419835334,1775407839746,-500.0,0.00020313,2]
[419835336,1775407839755,-500.0,0.00020313,2]
[419835339,1775407839764,-500.0,0.00020313,2]
[419835341,1775407839774,-500.0,0.00020313,2]
[419835344,1775407839783,-500.0,0.00020313,2]
[419835347,1775407839792,-500.0,0.00020313,2]
[419835350,1775407839801,-500.0,0.00020313,2]
[419835352,1775407839810,-500.0,0.00020313,2]
[419835355,1775407839820,-500.0,0.00020313,2]
[419835358,1775407839829,-500.0,0.00020313,2]
[419835360,1775407839838,-500.0,0.00020313,2]
[419835363,1775407839847,-500.0,0.00020313,2]
[419835365,1775407839856,-500.0,0.00020313,2]
[419835367,1775407839865,-500.0,0.00020313,2]
[419835369,1775407839874,-500.0,0.00020313,2]
[419835371,1775407839883,-500.0,0.00020313,2]
[419835373,1775407839892,-500.0,0.00020313,2]
[419835375,1775407839902,-500.0,0.00020313,2]
[419835377,1775407839911,-500.0,0.00020313,2]
[419835379,1775407839920,-500.0,0.00020313,2]
[419835381,1775407839929,-340.49905439,0.00020313,2]
[419835383,1775407839938,-782370.45465078,0.00020314,2]
[419835387,1775407839959,-727.58262917,0.00020314,2]
[419835511,1775407841139,-21796.85430732,0.00020314,2]
[419835740,1775407843662,-7412.19798299,0.00020314,2]
[419835987,1775407847091,-2073.27624964,0.00020314,2]
[419835989,1775407847103,-368261.29567064,0.00020314,2]
[419835990,1775407847112,-200.0,0.00020314,2]
[419835992,1775407847121,-200.0,0.00020314,2]
[419835993,1775407847131,-500.0,0.00020373,2]
[419835995,1775407847140,-500.0,0.00020373,2]
[419835997,1775407847149,-500.0,0.00020373,2]
[419835998,1775407847158,-503.63568216,0.00020373,2]
[419836000,1775407847167,-174.38618371,0.00020373,2]
[419836001,1775407847177,-720.0,0.00020377,2]
[419836003,1775407847186,-197.75728126,0.00020401,2]
[419836005,1775407847196,-693.3919763,0.00020401,2]
[419836006,1775407847205,-151.0,0.00020411,2]
[419836008,1775407847214,-194.99938,0.00020411,2]
[419836009,1775407847224,-151.0,0.00020411,2]
[419836011,1775407847234,-26885.14121499,0.00020411,2]
[419836020,1775407847354,-7040.52972771,0.00020411,2]
[419836022,1775407847365,-3461.90317999,0.00020411,2]
[419836024,1775407847376,-14573.55864179,0.00020411,2]
[419836597,1775409017231,500.0,0.00034725,120]
[419836598,1775409017455,500.0,0.00034725,120]
[419836599,1775409017683,500.0,0.00034725,120]
[419836600,1775409018048,500.0,0.00034725,120]
[419836601,1775409018420,500.0,0.00034725,120]
[419836602,1775409018535,500.0,0.00034725,120]
[419836603,1775409018769,500.0,0.00034725,120]
[419836604,1775409018997,500.0,0.00034725,120]
[419836605,1775409019327,500.0,0.00034725,120]
[419836606,1775409019552,500.0,0.00034725,120]
[419836607,1775409019785,500.0,0.00034725,120]
[419836608,1775409020040,500.0,0.00034725,120]
[419836609,1775409020276,500.0,0.00034725,120]
[419836610,1775409020526,500.0,0.00034725,120]
[419836611,1775409020742,500.0,0.00034725,120]
[419836612,1775409020970,500.0,0.00034725,120]
[419836613,1775409021188,500.0,0.00034725,120]
[419836614,1775409021417,500.0,0.00034725,120]
[419836615,1775409021749,268.20852703,0.00034725,120]
[419836622,1775409032527,-546.62725478,0.00013326,2]
[419836623,1775409032537,-3906.92197947,0.00013426,2]
[419836679,1775409041478,-1093.07802053,0.00013426,2]
[419836681,1775409041487,-1000.0,0.00013699,2]
[419836683,1775409041497,-1028.0,0.00018161,2]
[419836685,1775409041506,-150.449,0.00018163,2]
[419836687,1775409041515,-914.07027052,0.00018163,2]
[419836926,1775409043733,-350.0,0.00018163,2]
[419836937,1775409043896,-141.92972948,0.00018163,2]
[419836938,1775409043905,-2204.0,0.00018163,2]
[419836940,1775409043914,-440.0,0.00018163,2]
[419836941,1775409043923,-184.0,0.00018163,2]
[419836943,1775409043931,-502.83177383,0.00018773,5]
[419836944,1775409043940,-5104.3046875,0.00018796,2]
[419836946,1775409043950,-210.64,0.0001998,30]
[419836947,1775409043960,-500.0,0.0001998,30]
[419836949,1775409043969,-500.0,0.0001998,7]
[419836951,1775409043979,-331.75,0.0001998,30]
[419836952,1775409043988,-382.02,0.0001998,30]
[419836954,1775409043997,-324.5909039,0.00019988,2]
[419836955,1775409044006,-421.28,0.0002,30]
[419836957,1775409044016,-500.0,0.0002,30]
[419836959,1775409044025,-500.0,0.0002,7]
[419836960,1775409044034,-163.51,0.0002,30]
[419836961,1775409044043,-400.0,0.0002,4]
[419836963,1775409044052,-264.05,0.0002,30]
[419836964,1775409044061,-210.64,0.0002002,30]
[419836966,1775409044071,-500.0,0.0002002,30]
[419836968,1775409044081,-500.0,0.0002002,7]
[419836969,1775409044090,-331.75,0.0002002,30]
[419836971,1775409044100,-382.02,0.0002002,30]
[419836972,1775409044109,-16915.12980566,0.00020314,2]
[419836974,1775409044118,-3051.8687547,0.00020318,2]
[419836975,1775409044127,-3770.64428048,0.00020318,2]
[419837239,1775409048614,-16891.13269692,0.00020318,2]
[419837240,1775409048624,-1088.94865953,0.00020564,2]
[419837241,1775409048634,-250.0,0.00020663,3]
[419837242,1775409048643,-250.0,0.00020663,3]
[419837243,1775409048652,-250.0,0.00020663,3]
[419837244,1775409048662,-231.5410642,0.0002081,2]
[419837245,1775409048671,-196.3430609,0.0002081,2]
[419837246,1775409048680,-600.0,0.00020821,2]
[419837247,1775409048689,-168.11772176,0.00020898,2]
[419837248,1775409048698,-500.0,0.00020898,2]
[419837249,1775409048707,-500.0,0.00020898,2]
[419837250,1775409048716,-479.54816405,0.00020898,2]
[419837251,1775409048725,-500.0,0.00020898,2]
[419837253,1775409048734,-500.0,0.00020898,2]
[419837254,1775409048744,-500.0,0.00020898,2]
[419837255,1775409048753,-227.93327275,0.00020898,2]
[419837257,1775409048762,-500.0,0.00020898,2]
[419837258,1775409048771,-500.0,0.00020898,2]
[419837259,1775409048780,-500.0,0.00020898,2]
[419837260,1775409048789,-500.0,0.00020898,2]
[419837262,1775409048798,-500.0,0.00020898,2]
[419837263,1775409048807,-12545.350981,0.00020899,2]
[419837264,1775409048816,-300.316104,0.00020899,2]
[419837265,1775409048826,-1406.0,0.00021163,2]
[419837267,1775409048835,-2204.0,0.00021163,2]
[419837268,1775409048845,-440.0,0.00021163,2]
[419837269,1775409048854,-184.0,0.00021163,2]
[419837271,1775409048863,-1187.13071869,0.00021184,2]
[419837272,1775409048873,-500.0,0.00021284,30]
[419837273,1775409048882,-500.0,0.00021284,7]
[419837275,1775409048891,-500.0,0.00021306,30]
[419837277,1775409048901,-500.0,0.00021306,7]
[419837279,1775409048910,-280.4,0.00021306,30]
[419837281,1775409048919,-500.0,0.00021327,30]
[419837283,1775409048928,-500.0,0.00021327,7]
[419837285,1775409048937,-1187.13071867,0.00021363,2]
[419837287,1775409048947,-205.91011322,0.00021488,2]
[419837289,1775409048957,-235.32584368,0.00021488,2]
[419837291,1775409048967,-367.69663075,0.00021488,2]
[419837293,1775409048976,-1187.13071867,0.00021542,2]
[419837295,1775409048985,-681.55765683,0.00021559,2]
[419837297,1775409048994,-454.5732553,0.00021632,2]
[419837299,1775409049004,-196.3265865,0.00021633,2]
[419837301,1775409049013,-800.0,0.00021652,2]
[419837303,1775409049022,-800.0,0.00021673,2]
[419837305,1775409049031,-800.0,0.00021689,2]
[419837306,1775409049040,-1187.13071867,0.00021721,2]
[419837308,1775409049050,-800.0,0.00021723,2]
[419837310,1775409049059,-800.0,0.00021775,2]
[419837312,1775409049068,-800.0,0.00021785,2]
[419837314,1775409049077,-800.0,0.0002186,2]
[419837316,1775409049086,-246.05092097,0.00021879,2]
[419837318,1775409049095,-800.0,0.00021882,2]
[419837320,1775409049104,-800.0,0.00021897,2]
[419837322,1775409049114,-158.759,0.00021899,2]
[419837324,1775409049123,-1187.13071867,0.000219,2]
[419837326,1775409049133,-4421.00266835,0.000219,2]
[419837328,1775409049143,-800.0,0.00021914,2]
[419837330,1775409049152,-800.0,0.00021955,2]
[419837332,1775409049161,-500.0,0.00021973,2]
[419837334,1775409049171,-500.0,0.00021973,2]
[419837336,1775409049181,-66749.67180478,0.0002198,2]
[419837338,1775409049190,-500.0,0.00021999,2]
[419837340,1775409049199,-500.0,0.00021999,2]
[419837342,1775409049209,-156.61434291,0.00021999,2]
[419837344,1775409049218,-500.0,0.00021999,2]
[419837346,1775409049227,-549.5137983,0.00021999,2]
[419837348,1775409049236,-500.0,0.00021999,2]
[419837350,1775409049245,-500.0,0.00021999,2]
[419837352,1775409049254,-348.0896021,0.00021999,2]
[419837354,1775409049263,-500.0,0.00021999,2]
[419837356,1775409049272,-500.0,0.00021999,2]
[419837358,1775409049282,-500.0,0.00021999,2]
[419837360,1775409049291,-500.0,0.00021999,2]
[419837362,1775409049300,-500.0,0.00021999,2]
[419837364,1775409049310,-500.0,0.00021999,2]
[419837366,1775409049319,-500.0,0.00021999,2]
[419837368,1775409049329,-500.0,0.00021999,2]
[419837370,1775409049338,-500.0,0.00021999,2]
[419837372,1775409049347,-500.0,0.00021999,2]
[419837374,1775409049356,-400.0,0.00021999,2]
[419837376,1775409049365,-200.0,0.00021999,2]
[419837378,1775409049376,-240224.08818438,0.00022,2]
[419838669,1775409930365,1500.0,0.00034722,120]
[419838670,1775409931267,1500.0,0.00034722,120]
[419838671,1775409932069,1500.0,0.00034722,120]
[419838672,1775409932834,1500.0,0.00034722,120]
[419838673,1775409933617,1500.0,0.00034722,120]
[419838674,1775409934181,1500.0,0.00034722,120]
[419838675,1775409934604,1500.0,0.00034722,120]
[419838676,1775409934980,1500.0,0.00034722,120]
[419838677,1775409935362,1500.0,0.00034722,120]
[419838678,1775409935732,1500.0,0.00034722,120]
[419838679,1775409936211,1500.0,0.00034722,120]
[419838680,1775409943882,1027.42273609,0.00034722,120]
[419838682,1775410055159,1000.0,0.00034722,120]
[419838693,1775410232665,-537.252,0.00013699,2]
[419838741,1775410238906,-462.748,0.00013699,2]
[419838743,1775410238916,-500.0,0.00013852,2]
[419838745,1775410238926,-500.0,0.00013866,2]
[419838747,1775410238935,-421.17231444,0.00013866,7]
[419838749,1775410238947,-78.82768556,0.00013866,7]
[419838751,1775410238956,-500.0,0.0001388,2]
[419838753,1775410238966,-300.0,0.00013972,2]
[419838755,1775410238976,-644.0,0.00018576,2]
[419838757,1775410238985,-2199.0,0.00018576,2]
[419838759,1775410238994,-414.34251401,0.00018576,2]
[419838762,1775410239006,-991.65748599,0.00018576,2]
[419838764,1775410239016,-440.0,0.00018576,2]
[419838765,1775410239026,-184.0,0.00018576,2]
[419838767,1775410239037,-170.5282064,0.00019274,2]
[419838769,1775410239046,-500.0,0.0001998,2]
[419838771,1775410239055,-500.0,0.0001998,7]
[419838773,1775410239065,-372.88,0.0001998,30]
[419838775,1775410239074,-199.81937623,0.0002,2]
[419838974,1775410241543,-300.18062377,0.0002,2]
[419838976,1775410241553,-212.58996934,0.0002,7]
[419839215,1775410244298,-287.41003066,0.0002,7]
[419839218,1775410244308,-500.0,0.0002,30]
[419839221,1775410244318,-132.9392037,0.0002,30]
[419839224,1775410244331,-112.8307963,0.0002,30]
[419839226,1775410244340,-500.0,0.0002002,2]
[419839228,1775410244350,-500.0,0.0002002,7]
[419839230,1775410244359,-372.88,0.0002002,30]
[419839231,1775410244368,-151.0,0.00020809,2]
[419839233,1775410244378,-528.95366514,0.00020874,2]
[419839235,1775410244387,-222.74596813,0.00020874,2]
[419839237,1775410244397,-454.37177123,0.0002156,2]
[419839239,1775410244406,-644.0,0.00021576,2]
[419839241,1775410244415,-1406.0,0.00021576,2]
[419839243,1775410244424,-440.0,0.00021576,2]
[419839245,1775410244434,-184.0,0.00021576,2]
[419839247,1775410244443,-196.3430609,0.00021632,2]
[419839249,1775410244452,-3236.38740777,0.000219,2]
[419839487,1775410246899,-302.91451415,0.0002156,2]
[419839489,1775410246908,-2130.09252676,0.000219,2]
[419839491,1775410246917,-3978.90240156,0.000219,2]
[419839493,1775410246926,-250.06,0.00021945,4]
[419839495,1775410246935,-500.0,0.00021973,2]
[419839497,1775410246944,-500.0,0.00021973,2]
[419839499,1775410246952,-226.38350539,0.00021973,2]
[419839501,1775410246961,-800.0,0.00021976,2]
[419839503,1775410246970,-500.0,0.00021999,2]
[419839505,1775410246979,-443.66272147,0.00021999,2]
[419839507,1775410246987,-500.0,0.00021999,2]
[419839509,1775410246996,-500.0,0.00021999,2]
[419839511,1775410247005,-500.0,0.00021999,2]
[419839513,1775410247014,-500.0,0.00021999,2]
[419839515,1775410247023,-500.0,0.00021999,2]
[419839517,1775410247031,-500.0,0.00021999,2]
[419839519,1775410247041,-500.0,0.00021999,2]
[419839521,1775410247050,-500.0,0.00021999,2]
[419839522,1775410247061,-500.0,0.00021999,2]
[419839524,1775410247070,-314.65965881,0.00021999,2]
[419839526,1775410247079,-500.0,0.00021999,2]
[419839528,1775410247088,-636.4370303,0.00021999,2]
[419839530,1775410247097,-77915.76954986,0.00022,2]
[419839532,1775410247106,-160.94,0.00022,2]
[419839534,1775410247116,-244148.58729339,0.00022,2]
[419839536,1775410247125,-7735.62691124,0.00022,2]
[419839539,1775410247143,-9324.2403483,0.00022,2]
[419839902,1775410484337,168.72055831,0.00034722,120]
[419839903,1775410484366,152.71290902,0.00034722,120]
[419839904,1775410484598,163.39080564,0.00034722,120]
[419839905,1775410484637,168.72055831,0.00034722,120]
[419839906,1775410484895,163.39080564,0.00034722,120]
[419839907,1775410484959,168.72055831,0.00034722,120]
[419839908,1775410485265,168.72055831,0.00034722,120]
[419839909,1775410485551,168.72055831,0.00034722,120]
[419839910,1775410485838,168.72055831,0.00034722,120]
[419839913,1775410603962,168.72055828,0.00034713,120]
[419839914,1775410636756,436.56,9.003e-05,2]
[419839920,1775411005653,549.69557109,0.00034713,120]
[419840234,1775411440711,-1000.0,0.00013699,2]
[419840236,1775411440722,-1433.1418704,0.00014175,2]
[419840239,1775411440734,-34.77295465,0.00014175,2]
[419840241,1775411440745,-500.0,0.00014489,2]
[419840243,1775411440756,-300.0,0.00018937,2]
[419840245,1775411440766,-604.538,0.00018938,2]
[419840246,1775411440780,-1406.0,0.00018938,2]
[419840248,1775411440790,-324.8365858,0.0002083,2]
[419840250,1775411440801,-164.88370492,0.00020899,2]
[419840253,1775411440816,-151.45725707,0.0002156,2]
[419840255,1775411440827,-196.2850388,0.00021636,2]
[419840257,1775411440838,-196.3265865,0.00021641,2]
[419840259,1775411440852,-196.3430609,0.00021652,2]
[419840261,1775411440863,-130.75446003,0.00021899,2]
[419840263,1775411440877,-590.08758031,0.00021899,2]
[419840265,1775411440886,-1219.91665635,0.000219,5]